fUST/lending_fUST_20250128
["ID","MTS","AMOUNT","RATE_DAILY","PERIOD"]
[350643588,1738017040579,-500.0,0.00016575,2]
[350643589,1738017040587,-500.0,0.00016575,2]
[350643590,1738017040597,-500.0,0.00016575,2]
[350643591,1738017040606,-1851.11,0.00016575,2]
[350643592,1738017040615,-500.0,0.00016575,2]
[350643593,1738017040624,-500.0,0.00016575,2]
[350643594,1738017040634,-500.0,0.00016575,2]
[350643595,1738017040643,-500.0,0.00016575,2]
[350643596,1738017040652,-500.0,0.00016575,2]
[350643597,1738017040661,-266.11,0.00016575,2]
[350643598,1738017040671,-775.04,0.00016575,2]
[350643599,1738017040679,-500.0,0.00016575,2]
[350643600,1738017040689,-390.653636,0.00016711,2]
[350643601,1738017040698,-500.0,0.00016711,2]
[350643602,1738017040708,-500.0,0.00016711,2]
[350643603,1738017040717,-324.70966285,0.00016711,2]
[350643604,1738017040726,-500.0,0.00016712,2]
[350643605,1738017040735,-500.0,0.00016712,2]
[350643606,1738017040745,-500.0,0.00016712,2]
[350643607,1738017040754,-500.0,0.00016712,2]
[350643608,1738017040763,-500.0,0.00016712,2]
[350643609,1738017040772,-500.0,0.00016712,2]
[350643610,1738017040782,-500.0,0.00016712,2]
[350643611,1738017040792,-500.0,0.00016712,2]
[350643612,1738017040801,-500.0,0.00016712,2]
[350643613,1738017040810,-581.84,0.00016712,2]
[350643614,1738017040819,-500.0,0.00016712,2]
[350643615,1738017040829,-349.86,0.00016712,2]
[350643616,1738017040838,-500.0,0.00016712,2]
[350643617,1738017040847,-618.46449649,0.00016712,2]
[350643618,1738017040856,-500.0,0.00016712,2]
[350643619,1738017040866,-500.0,0.00016712,2]
[350643620,1738017040875,-500.0,0.00016712,2]
[350643621,1738017040884,-500.0,0.00016712,2]
[350643622,1738017040893,-500.0,0.00016712,2]
[350643623,1738017040902,-500.0,0.00016712,2]
[350643624,1738017040912,-500.0,0.00016712,2]
[350643625,1738017040921,-500.0,0.00016712,2]
[350643626,1738017040930,-410.61387151,0.00016712,2]
[350643627,1738017040939,-500.0,0.00016712,2]
[350643628,1738017040948,-500.0,0.00016712,2]
[350643629,1738017040957,-500.0,0.00016712,2]
[350643630,1738017040967,-500.0,0.00016712,2]
[350643631,1738017040977,-500.0,0.00016712,2]
[350643632,1738017040986,-500.0,0.00016712,2]
[350643633,1738017040996,-552.12,0.00016712,2]
[350643634,1738017041007,-1851.11,0.00016712,2]
[350643635,1738017041016,-500.0,0.00016712,2]
[350643636,1738017041026,-500.0,0.00016712,2]
[350643637,1738017041036,-500.0,0.00016712,2]
[350643638,1738017041046,-775.04,0.00016712,2]
[350643639,1738017041055,-500.0,0.00016712,2]
[350643640,1738017041064,-500.0,0.00016849,2]
[350643641,1738017041073,-500.0,0.00016849,2]
[350643642,1738017041082,-500.0,0.00016849,2]
[350643643,1738017041091,-500.0,0.00016849,2]
[350643644,1738017041102,-500.0,0.00016849,2]
[350643645,1738017041111,-500.0,0.00016849,2]
[350643646,1738017041120,-500.0,0.00016849,2]
[350643647,1738017041130,-500.0,0.00016849,2]
[350643648,1738017041139,-500.0,0.00016849,2]
[350643649,1738017041148,-500.0,0.00016849,2]
[350643650,1738017041158,-500.0,0.00016849,2]
[350643651,1738017041169,-327.85031001,0.00016849,2]
[350643652,1738017041181,-500.0,0.00016849,2]
[350643653,1738017041190,-500.0,0.00016849,2]
[350643654,1738017041199,-222.13,0.00016849,2]
[350643655,1738017041208,-500.0,0.00016849,2]
[350643656,1738017041219,-500.0,0.00016849,2]
[350643657,1738017041228,-500.0,0.00016849,2]
[350643658,1738017041238,-500.0,0.00016849,2]
[350643659,1738017041249,-1851.11,0.00016849,2]
[350643660,1738017041258,-574.5,0.00016849,2]
[350643661,1738017041267,-500.0,0.00016849,2]
[350643662,1738017041276,-500.0,0.00016849,2]
[350643663,1738017041286,-775.04,0.00016849,2]
[350643664,1738017041295,-500.0,0.00016849,2]
[350643665,1738017041304,-500.0,0.00016986,2]
[350643666,1738017041313,-500.0,0.00016986,2]
[350643667,1738017041322,-500.0,0.00016986,2]
[350643668,1738017041332,-500.0,0.00016986,2]
[350643669,1738017041341,-500.0,0.00016986,2]
[350643670,1738017041350,-455.79,0.00016986,2]
[350643671,1738017041359,-500.0,0.00016986,2]
[350643672,1738017041368,-500.0,0.00016986,2]
[350643673,1738017041377,-500.0,0.00016986,2]
[350643674,1738017041387,-1851.11,0.00016986,2]
[350643675,1738017041396,-500.0,0.00016986,2]
[350643676,1738017041405,-500.0,0.00016986,2]
[350643677,1738017041415,-775.04,0.00016986,2]
[350643678,1738017041424,-500.0,0.00016986,2]
[350643679,1738017041433,-500.0,0.00017123,2]
[350643680,1738017041443,-500.0,0.00017123,2]
[350643681,1738017041453,-500.0,0.00017123,2]
[350643682,1738017041462,-500.0,0.00017123,2]
[350643683,1738017041472,-500.0,0.00017123,2]
[350643684,1738017041482,-288.44,0.00017123,2]
[350643685,1738017041492,-500.0,0.00017123,2]
[350643686,1738017041502,-1851.11,0.00017123,2]
[350643687,1738017041512,-500.0,0.00017123,2]
[350643688,1738017041521,-500.0,0.00017123,2]
[350643689,1738017041531,-775.04,0.00017123,2]
[350643690,1738017041541,-209.08,0.00017123,2]
[350643691,1738017041550,-733.96609796,0.0001724,2]
[350643692,1738017041560,-500.0,0.0001726,2]
[350643693,1738017041569,-500.0,0.0001726,2]
[350643694,1738017041579,-478.64111202,0.0001726,2]
[350643695,1738017041588,-227.77,0.0001726,2]
[350643696,1738017041597,-500.0,0.0001726,2]
[350643697,1738017041607,-508.2433463,0.0001726,2]
[350643698,1738017041618,-1851.11,0.0001726,2]
[350643699,1738017041627,-286.61892401,0.0001726,2]
[350643700,1738017041636,-500.0,0.0001726,2]
[350643701,1738017041645,-775.04,0.0001726,2]
[350643702,1738017041654,-151.0,0.000173,2]
[350643703,1738017041663,-176.35,0.00017397,2]
[350643704,1738017041676,-500.56,0.00017397,2]
[350643705,1738017041688,-500.0,0.00017397,2]
[350643706,1738017041700,-1851.11,0.00017397,2]
[350643707,1738017041711,-500.0,0.00017397,2]
[350643708,1738017041723,-775.04,0.00017397,2]
[350643709,1738017041734,-500.0,0.00017534,2]
[350643710,1738017041744,-1851.11,0.00017534,2]
[350643711,1738017041754,-500.0,0.00017534,2]
[350643712,1738017041765,-775.04,0.00017534,2]
[350643713,1738017041777,-500.0,0.00017671,2]
[350643714,1738017041788,-1851.11,0.00017671,2]
[350643715,1738017041800,-541.60025089,0.00017671,2]
[350643716,1738017041811,-775.04,0.00017671,2]
[350643717,1738017041822,-151.0,0.000178,2]
[350643718,1738017041833,-262.72,0.00017808,2]
[350643719,1738017041844,-1851.11,0.00017808,2]
[350643720,1738017041856,-775.04,0.00017808,2]
[350643721,1738017041868,-1851.11,0.00017945,2]
[350643722,1738017041880,-775.04,0.00017945,2]
[350643723,1738017041891,-420.0,0.00017963,2]
[350643724,1738017041903,-177.34119444,0.0001802,2]
[350643725,1738017041913,-1851.11,0.00018082,2]
[350643726,1738017041924,-775.04,0.00018082,2]
[350643727,1738017041935,-733.96609796,0.00018143,2]
[350643728,1738017041946,-1851.11,0.00018219,2]
[350643729,1738017041957,-775.04,0.00018219,2]
[350643730,1738017041969,-1851.11,0.00018356,2]
[350643731,1738017041981,-775.04,0.00018356,2]
[350643732,1738017041992,-151.0,0.000184,2]
[350643733,1738017042003,-1851.11,0.00018493,2]
[350643734,1738017042014,-775.04,0.00018493,2]
[350643735,1738017042025,-155.75,0.000186,2]
[350643736,1738017042035,-1851.11,0.0001863,2]
[350643737,1738017042045,-775.04,0.0001863,2]
[350643738,1738017042056,-176.711,0.0001866,2]
[350643739,1738017042066,-153.0,0.00018723,2]
[350643740,1738017042078,-153.0,0.00018723,2]
[350643741,1738017042090,-153.0,0.00018723,2]
[350643742,1738017042101,-153.0,0.00018723,2]
[350643743,1738017042113,-153.0,0.00018723,2]
[350643744,1738017042124,-153.0,0.00018723,2]
[350643745,1738017042135,-153.0,0.00018727,2]
[350643746,1738017042147,-153.0,0.00018727,2]
[350643747,1738017042159,-153.0,0.00018727,2]
[350643748,1738017042171,-153.0,0.00018727,2]
[350643749,1738017042184,-153.0,0.00018728,2]
[350643750,1738017042197,-153.0,0.00018728,2]
[350643751,1738017042210,-153.0,0.00018728,2]
[350643752,1738017042219,-153.0,0.00018732,2]
[350643753,1738017042230,-1851.11,0.00018767,2]
[350643754,1738017042240,-775.04,0.00018767,2]
[350643755,1738017042252,-151.0,0.000189,2]
[350643756,1738017042263,-640.45256084,0.000189,2]
[350643757,1738017042274,-640.45256068,0.000189,2]
[350643758,1738017042285,-640.45256068,0.000189,2]
[350643759,1738017042296,-640.45256068,0.000189,2]
[350643760,1738017042308,-640.45256068,0.000189,2]
[350643761,1738017042319,-640.45256068,0.000189,2]
[350643762,1738017042331,-1851.11,0.00018904,2]
[350643763,1738017042342,-775.04,0.00018904,2]
[350643764,1738017042352,-500.0,0.00018908,2]
[350643765,1738017042363,-640.45256068,0.00018934,2]
[350643766,1738017042374,-187.51932369,0.00018999,2]
[350643767,1738017042385,-2268.5928978,0.00019,4]
[350643769,1738017042396,-41430.41710455,0.00019,2]
[350643770,1738017042407,-1851.11,0.00019041,2]
[350643771,1738017042418,-775.04,0.00019041,2]
[350643772,1738017042428,-733.96609796,0.00019045,2]
[350643773,1738017042438,-640.45256068,0.00019107,2]
[350643774,1738017042449,-1851.11,0.00019178,2]
[350643775,1738017042459,-775.04,0.00019178,2]
[350643776,1738017042469,-640.45256068,0.00019279,2]
[350643777,1738017042480,-1851.11,0.00019315,2]
[350643778,1738017042491,-775.04,0.00019315,2]
[350643779,1738017042501,-151.0,0.000194,2]
[350643780,1738017042512,-640.45256068,0.00019452,2]
[350643781,1738017042523,-1851.11,0.00019452,2]
[350643782,1738017042534,-775.04,0.00019452,2]
[350643783,1738017042544,-177.34119444,0.00019565,2]
[350643784,1738017042555,-1851.1493,0.00019589,2]
[350643785,1738017042565,-775.13737369,0.00019589,2]
[350643786,1738017042576,-640.45256068,0.00019624,2]
[350643787,1738017042587,-480.0,0.00019631,2]
[350643788,1738017042597,-640.45256068,0.00019797,2]
[350643789,1738017042608,-733.96609796,0.00019948,2]
[350643790,1738017042618,-640.45256068,0.00019969,2]
[350643791,1738017042629,-160.0,0.0002,2]
[350643792,1738017042640,-151.0,0.0002,2]
[350643793,1738017042651,-640.45256068,0.00020141,2]
[350643794,1738017042662,-640.45256068,0.00020314,2]
[350643795,1738017042672,-640.45256068,0.00020486,2]
[350643796,1738017042682,-151.0,0.000205,4]
[350643797,1738017042692,-499.0,0.00020547,2]
[350643798,1738017042703,-150.0,0.00020636,2]
[350643799,1738017042713,-640.45256068,0.00020659,2]
[350643800,1738017042723,-640.45256068,0.00020831,2]
[350643801,1738017042733,-733.96609796,0.0002085,2]
[350643802,1738017042743,-640.45256068,0.00021003,2]
[350643803,1738017042754,-151.0,0.000211,4]
[350643804,1738017042764,-177.34119444,0.0002111,2]
[350643805,1738017042775,-640.45256068,0.00021176,2]
[350643806,1738017042785,-640.45256068,0.00021348,2]
[350643807,1738017042795,-640.45256068,0.00021521,2]
[350643808,1738017042806,-155.074,0.000216,2]
[350643809,1738017042816,-327.59,0.000216,2]
[350643810,1738017042826,-151.0,0.000216,4]
[350643811,1738017042837,-160.0,0.00021683,3]
[350643812,1738017042847,-640.45256068,0.00021693,3]
[350643813,1738017042858,-733.96609796,0.00021753,2]
[350643814,1738017042868,-354.0685108,0.00021781,2]
[350643815,1738017042878,-395.0,0.00021849,2]
[350643816,1738017042889,-150.0,0.00021849,2]
[350643817,1738017042900,-1971.694,0.00021849,2]
[350643818,1738017042910,-640.45256068,0.00021866,3]
[350643819,1738017042921,-499.0,0.00021917,4]
[350643820,1738017042930,-154.2562043,0.00021918,2]
[350643821,1738017042939,-308.611373,0.00021918,2]
[350643822,1738017043071,-430.8619062,0.00021918,2]
[350643823,1738017043083,-8815.32906024,0.0002199,7]
[350643824,1738017043092,-3462.07408591,0.00022,2]
[350643825,1738017043101,-640.45256068,0.00022038,3]
[350643827,1738017043111,-151.0,0.000222,8]
[350643829,1738017043120,-640.45256068,0.0002221,3]
[350643831,1738017043130,-151.0,0.00022223,7]
[350643833,1738017043140,-10411.63732339,0.00022305,2]
[350643835,1738017043149,-640.45256068,0.00022383,3]
[350643837,1738017043158,-151.0,0.00022484,7]
[350643839,1738017043170,-476.0230758,0.00022511,2]
[350643841,1738017043180,-640.45256068,0.00022555,3]
[350643843,1738017043189,-5004.80756513,0.0002256,2]
[350643846,1738017043199,-153.08,0.000226,31]
[350643848,1738017043209,-153.08,0.000226,31]
[350643850,1738017043221,-153.08,0.000226,31]
[350643852,1738017043231,-153.08,0.000226,31]
[350643854,1738017043240,-153.08,0.000226,31]
[350643856,1738017043250,-153.08,0.000226,31]
[350643858,1738017043259,-150.0,0.000226,2]
[350643859,1738017043268,-167.0,0.00022611,3]
[350643860,1738017043278,-227.08,0.00022621,3]
[350643861,1738017043287,-153.0,0.00022621,3]
[350643863,1738017043296,-153.0,0.00022621,3]
[350643865,1738017043305,-153.0,0.00022621,3]
[350643867,1738017043314,-153.0,0.00022621,3]
[350643869,1738017043323,-153.0,0.00022621,3]
[350643870,1738017043332,-153.0,0.00022621,3]
[350643871,1738017043341,-153.0,0.00022621,3]
[350643872,1738017043350,-153.0,0.00022621,3]
[350643873,1738017043359,-153.0,0.00022621,3]
[350643874,1738017043368,-234.78,0.00022621,3]
[350643875,1738017043377,-153.0,0.00022623,3]
[350643877,1738017043386,-153.0,0.00022623,3]
[350643878,1738017043395,-151.0,0.00022623,3]
[350643879,1738017043404,-151.0,0.00022623,3]
[350643880,1738017043413,-151.0,0.00022623,3]
[350643881,1738017043423,-151.0,0.00022623,3]
[350643882,1738017043432,-151.0,0.00022623,3]
[350643883,1738017043442,-151.0,0.00022623,3]
[350643884,1738017043451,-151.0,0.00022623,3]
[350643885,1738017043460,-151.0,0.00022623,3]
[350643886,1738017043469,-151.0,0.00022623,3]
[350643888,1738017043478,-151.0,0.00022623,3]
[350643889,1738017043487,-160.0,0.0002263,3]
[350643891,1738017043496,-2031.39589356,0.00022655,2]
[350643893,1738017043506,-177.34119444,0.00022655,2]
[350643895,1738017043515,-153.0,0.00022658,3]
[350643897,1738017043525,-153.0,0.00022658,3]
[350643898,1738017043534,-153.0,0.00022658,3]
[350643900,1738017043543,-153.0,0.00022658,3]
[350643902,1738017043552,-153.0,0.00022658,3]
[350643903,1738017043561,-153.0,0.00022658,3]
[350643904,1738017043571,-153.0,0.00022658,3]
[350643905,1738017043580,-153.0,0.00022658,3]
[350643906,1738017043589,-153.0,0.00022658,3]
[350643908,1738017043598,-153.0,0.00022658,3]
[350643910,1738017043607,-153.0,0.00022658,3]
[350643912,1738017043618,-153.0,0.00022658,3]
[350643914,1738017043627,-153.0,0.00022658,3]
[350643916,1738017043637,-153.0,0.00022658,3]
[350643918,1738017043646,-153.0,0.00022658,3]
[350643920,1738017043655,-153.0,0.00022658,3]
[350643922,1738017043665,-153.0,0.00022658,3]
[350643924,1738017043674,-153.0,0.00022658,3]
[350643926,1738017043683,-153.0,0.00022658,3]
[350643928,1738017043692,-153.0,0.00022658,3]
[350643930,1738017043701,-153.0,0.00022658,3]
[350643932,1738017043710,-153.0,0.00022658,3]
[350643934,1738017043719,-153.0,0.00022658,3]
[350643935,1738017043729,-153.0,0.00022658,3]
[350643937,1738017043738,-153.0,0.00022658,3]
[350643939,1738017043748,-153.0,0.00022658,3]
[350643940,1738017043758,-153.0,0.00022658,3]
[350643941,1738017043767,-153.0,0.00022658,3]
[350643942,1738017043777,-153.0,0.00022658,3]
[350643943,1738017043787,-153.0,0.00022658,3]
[350643944,1738017043796,-153.0,0.00022658,3]
[350643945,1738017043806,-153.0,0.00022658,3]
[350643946,1738017043815,-153.0,0.00022658,3]
[350643947,1738017043824,-153.0,0.00022658,3]
[350643948,1738017043834,-153.0,0.00022658,3]
[350643949,1738017043842,-151.0,0.000227,5]
[350643950,1738017043851,-2002.0,0.000227,2]
[350643951,1738017043860,-640.45256068,0.00022728,3]
[350643952,1738017043871,-155.75,0.00022728,2]
[350643954,1738017043880,-600.42370811,0.00022738,2]
[350643955,1738017043889,-500.0,0.00022739,8]
[350643956,1738017043898,-500.0,0.00022739,8]
[350643957,1738017043907,-460.92762151,0.0002274,5]
[350643958,1738017043917,-500.0,0.0002274,5]
[350643959,1738017043926,-500.0,0.0002274,5]
[350643960,1738017043935,-500.0,0.0002274,5]
[350643961,1738017043944,-500.0,0.0002274,5]
[350643962,1738017043954,-277.65014273,0.0002274,5]
[350643963,1738017043963,-186.680568,0.0002274,5]
[350643964,1738017043973,-151.0,0.00022744,15]
[350643965,1738017043982,-500.0,0.00022748,2]
[350643966,1738017043991,-179.82772269,0.00022748,2]
[350643967,1738017044001,-500.0,0.00022748,2]
[350643968,1738017044010,-500.0,0.00022748,2]
[350643969,1738017044019,-500.0,0.00022748,2]
[350643970,1738017044029,-500.0,0.00022748,2]
[350643971,1738017044039,-500.0,0.00022748,2]
[350643972,1738017044048,-500.0,0.00022748,2]
[350643973,1738017044057,-500.0,0.00022748,2]
[350643974,1738017044066,-500.0,0.00022748,2]
[350643975,1738017044075,-474.27682712,0.00022748,2]
[350643976,1738017044084,-500.0,0.00022748,14]
[350643977,1738017044093,-500.0,0.00022748,14]
[350643978,1738017044101,-150.21,0.00022748,14]
[350643979,1738017044111,-500.0,0.00022748,14]
[350643980,1738017044122,-150.21,0.00022748,2]
[350643981,1738017044131,-150.21,0.00022748,14]
[350643982,1738017044139,-201.24409834,0.00022748,14]
[350643983,1738017044149,-500.0,0.00022748,3]
[350643984,1738017044158,-7376.05112784,0.00022755,5]
[350643985,1738017044167,-1638.7589589,0.00022755,5]
[350643986,1738017044179,-151.0,0.00022755,7]
[350643987,1738017044188,-151.0,0.00022755,7]
[350643988,1738017044197,-151.0,0.00022755,7]
[350643989,1738017044206,-151.0,0.00022755,7]
[350643990,1738017044216,-151.0,0.00022755,7]
[350643991,1738017044226,-151.0,0.00022755,7]
[350643992,1738017044235,-151.0,0.00022755,7]
[350643993,1738017044244,-151.0,0.00022755,7]
[350643994,1738017044255,-253.89855617,0.00022755,7]
[350643995,1738017044264,-151.0,0.00022755,7]
[350643996,1738017044273,-151.0,0.00022755,7]
[350643997,1738017044282,-151.0,0.00022755,7]
[350643998,1738017044291,-151.0,0.00022755,7]
[350643999,1738017044300,-151.0,0.00022755,7]
[350644000,1738017044309,-151.0,0.00022755,7]
[350644001,1738017044318,-151.0,0.00022755,7]
[350644002,1738017044327,-151.0,0.00022755,7]
[350644003,1738017044336,-151.0,0.00022755,7]
[350644004,1738017044345,-151.0,0.00022755,7]
[350644005,1738017044354,-151.0,0.00022755,7]
[350644006,1738017044364,-151.0,0.00022755,7]
[350644007,1738017044373,-151.0,0.00022755,7]
[350644008,1738017044382,-151.0,0.00022755,7]
[350644009,1738017044391,-254.413782,0.00022755,7]
[350644010,1738017044401,-151.0,0.00022755,7]
[350644011,1738017044410,-151.0,0.00022755,7]
[350644012,1738017044419,-151.0,0.00022755,7]
[350644013,1738017044429,-253.969027,0.00022755,7]
[350644014,1738017044438,-151.0,0.00022755,7]
[350644015,1738017044447,-151.0,0.00022755,7]
[350644016,1738017044457,-151.0,0.00022755,7]
[350644017,1738017044467,-151.0,0.00022755,7]
[350644018,1738017044476,-151.0,0.00022755,7]
[350644019,1738017044485,-151.0,0.00022755,7]
[350644020,1738017044495,-255.716402,0.00022755,7]
[350644021,1738017044504,-151.0,0.00022755,7]
[350644022,1738017044514,-151.0,0.00022755,7]
[350644023,1738017044524,-151.0,0.00022755,7]
[350644024,1738017044534,-151.0,0.00022755,7]
[350644025,1738017044543,-151.0,0.00022755,7]
[350644026,1738017044552,-138294.98621891,0.00022755,61]
[350644027,1738017044568,-161164.46445999,0.00022755,61]
[350644028,1738017044814,-452.112233,0.00022655,2]
[350644029,1738017044826,-281.85386496,0.00022655,2]
[350644030,1738017044835,-863.3838806,0.00022755,61]
[350644031,1738017044847,-1794036.69760689,0.00022755,61]
[350644032,1738017044857,-561.44000123,0.00022755,61]
[350644033,1738017044870,-1467.50837983,0.00022755,61]
[350644034,1738017044881,-366.45182833,0.00022755,61]
[350644035,1738017044896,-455.09241708,0.00022755,61]
[350644049,1738017063409,288.25873421,0.000171,14]
[350644055,1738017071610,288.25873421,0.000171,14]
[350644086,1738017405773,166.666667,0.00013973,2]
[350644088,1738017486329,5000.0,0.0001564,2]
[350644089,1738017501351,908.07838406,0.0001564,2]
[350644091,1738017522213,785.4134831,0.00015413,2]
[350644094,1738017625004,4205.7267757,0.0001564,2]
[350644095,1738017648402,2004.9904889,0.0001564,2]
[350644098,1738017697295,234.448506,0.00013699,2]
[350644100,1738017920515,5000.0,0.0001515,2]
[350644101,1738017936064,5000.0,0.0001515,2]
[350644102,1738017951090,3804.36964735,0.0001515,2]
[350644103,1738017953139,-183.37386867,0.00015393,2]
[350644105,1738018016521,1764.60374102,0.0001515,2]
[350644106,1738018016554,3235.39625898,0.0001515,2]
[350644107,1738018031143,-6286.39449663,0.00015393,2]
[350644108,1738018031165,-363.7035378,0.0001541,2]
[350644109,1738018031189,-288.25873421,0.00016011,2]
[350644110,1738018031211,-162.6012162,0.00016139,2]
[350644111,1738018031233,-160.62388664,0.00016338,2]
[350644112,1738018031255,-885.87590749,0.00016428,2]
[350644113,1738018031278,-185.26905183,0.00016437,2]
[350644114,1738018031819,5000.0,0.0001515,2]
[350644115,1738018032135,-114.73094817,0.00016437,2]
[350644116,1738018032172,-500.0,0.00016438,2]
[350644117,1738018032211,-465.52067094,0.00016438,2]
[350644118,1738018042094,-34.47932906,0.00016438,2]
[350644119,1738018042115,-500.0,0.00016438,2]
[350644120,1738018042137,-500.0,0.00016438,2]
[350644121,1738018042158,-500.0,0.00016438,2]
[350644122,1738018042178,-500.0,0.00016438,2]
[350644123,1738018042198,-150.79286508,0.00016438,2]
[350644124,1738018042218,-500.0,0.00016438,2]
[350644125,1738018042237,-73.54075152,0.00016438,2]
[350644127,1738018148162,-178.64666234,0.00016274,2]
[350644128,1738018158146,-4821.35333766,0.00016274,2]
[350644129,1738018158172,-300.0,0.00016437,2]
[350644130,1738018158197,-323.46013718,0.00016438,2]
[350644131,1738018158223,-500.0,0.00016438,2]
[350644132,1738018158252,-500.0,0.00016438,2]
[350644133,1738018158278,-500.0,0.00016438,2]
[350644134,1738018158301,-500.0,0.00016438,2]
[350644135,1738018158324,-333.33531365,0.00016438,2]
[350644136,1738018158348,-500.0,0.00016438,2]
[350644137,1738018158373,-192.42485986,0.00016438,2]
[350644138,1738018158398,-500.0,0.00016438,2]
[350644139,1738018158422,-500.0,0.00016438,2]
[350644140,1738018158446,-501.99234675,0.00016438,2]
[350644141,1738018158470,-504.02913143,0.00016438,2]
[350644142,1738018158495,-316.42966145,0.00016438,2]
[350644190,1738018232498,-334.236827,0.00015644,2]
[350644192,1738018232508,-1997.849959,0.00016274,2]
[350644194,1738018232517,-160.62388663,0.00016338,2]
[350644196,1738018232526,-186.03853821,0.00016438,2]
[350644198,1738018232535,-500.0,0.00016438,2]
[350644200,1738018232548,-500.0,0.00016438,2]
[350644203,1738018232558,-533.80964002,0.00016438,2]
[350644205,1738018232567,-500.0,0.00016438,2]
[350644207,1738018232576,-500.0,0.00016438,2]
[350644209,1738018232585,-500.0,0.00016438,2]
[350644211,1738018232597,-175.49,0.00016438,2]
[350644212,1738018232606,-500.0,0.00016438,2]
[350644214,1738018232616,-500.0,0.00016438,2]
[350644216,1738018232625,-500.0,0.00016438,2]
[350644218,1738018232635,-500.0,0.00016438,2]
[350644220,1738018232645,-500.0,0.00016438,2]
[350644222,1738018232654,-500.0,0.00016438,2]
[350644224,1738018232663,-500.0,0.00016438,2]
[350644226,1738018232672,-111.55646758,0.00016438,2]
[350644228,1738018232684,-388.44353242,0.00016438,2]
[350644230,1738018232693,-500.0,0.00016438,2]
[350644232,1738018232702,-500.0,0.00016438,2]
[350644234,1738018232711,-386.04922688,0.00016438,2]
[350644236,1738018232720,-500.0,0.00016438,2]
[350644239,1738018232730,-500.0,0.00016438,2]
[350644241,1738018232739,-500.0,0.00016438,2]
[350644243,1738018232748,-500.0,0.00016438,2]
[350644245,1738018232757,-500.0,0.00016438,2]
[350644247,1738018232766,-500.0,0.00016438,2]
[350644248,1738018232774,-500.0,0.00016438,2]
[350644251,1738018232783,-500.0,0.00016438,2]
[350644253,1738018232793,-500.0,0.00016438,2]
[350644255,1738018232802,-500.0,0.00016438,2]
[350644257,1738018232811,-500.0,0.00016438,2]
[350644259,1738018232820,-160.79271136,0.00016438,2]
[350644261,1738018232831,-339.20728864,0.00016438,2]
[350644263,1738018232842,-365.55271136,0.00016438,2]
[350644289,1738018238106,-162.1301093,0.00016274,2]
[350644290,1738018238116,-134.44728864,0.00016438,2]
[350644291,1738018238125,-500.0,0.00016438,2]
[350644292,1738018238135,-500.0,0.00016438,2]
[350644293,1738018238144,-500.0,0.00016438,2]
[350644294,1738018238154,-500.0,0.00016438,2]
[350644295,1738018238163,-169.18122081,0.00016438,2]
[350644296,1738018238449,-330.81877919,0.00016438,2]
[350644297,1738018238458,-197.68860562,0.00016438,2]
[350644298,1738018238468,-500.0,0.00016438,2]
[350644299,1738018238478,-500.0,0.00016438,2]
[350644300,1738018238488,-500.0,0.00016438,2]